fUSD/lending_fUSD_20240301
["ID","MTS","AMOUNT","RATE_DAILY","PERIOD"]
[316010515,1709325068624,-500.0,0.00022136,2]
[316010516,1709325068634,-628.25,0.00022136,2]
[316010517,1709325068643,-500.0,0.00022136,2]
[316010518,1709325068652,-500.0,0.00022136,2]
[316010519,1709325068661,-1144.26,0.00022136,2]
[316010520,1709325068671,-1413.89,0.00022136,2]
[316010521,1709325068680,-1309.85,0.00022136,2]
[316010522,1709325068690,-2454.74,0.00022136,2]
[316010523,1709325068699,-500.0,0.00022136,2]
[316010524,1709325068709,-500.0,0.00022136,2]
[316010525,1709325068718,-500.0,0.00022136,2]
[316010526,1709325068727,-1110.9,0.00022136,2]
[316010527,1709325068736,-541.55,0.00022136,2]
[316010528,1709325068745,-500.0,0.00022136,2]
[316010529,1709325068946,-697.92,0.00022136,2]
[316010530,1709325068955,-2314.14,0.00022136,2]
[316010531,1709325068965,-689.43,0.00022136,2]
[316010532,1709325068974,-898.59,0.00022136,2]
[316010533,1709325068983,-705.17,0.00022136,2]
[316010534,1709325068995,-547.49,0.00022136,2]
[316010535,1709325069005,-1018.24,0.00022136,2]
[316010536,1709325069014,-500.0,0.00022136,2]
[316010537,1709325069023,-645.07,0.00022136,2]
[316010538,1709325069034,-1138.84,0.00022136,2]
[316010539,1709325069043,-13496.9,0.00022136,2]
[316010540,1709325069053,-500.0,0.00022136,2]
[316010541,1709325069064,-500.0,0.00022136,2]
[316010542,1709325069074,-771.59,0.00022136,2]
[316010543,1709325069083,-1245.99,0.00022136,2]
[316010544,1709325069093,-4551.14,0.00022136,2]
[316010545,1709325069102,-2194.49,0.00022136,2]
[316010546,1709325069112,-500.0,0.00022136,2]
[316010547,1709325069121,-1300.41,0.00022136,2]
[316010548,1709325069131,-858.27,0.00022136,2]
[316010549,1709325069140,-500.0,0.00022136,2]
[316010550,1709325069150,-1006.76,0.00022136,2]
[316010551,1709325069160,-797.83,0.00022136,2]
[316010552,1709325069170,-648.54,0.00022136,2]
[316010553,1709325069179,-500.0,0.00022136,2]
[316010554,1709325069190,-3937.49,0.00022136,2]
[316010555,1709325069200,-1738.03,0.00022136,2]
[316010556,1709325069210,-1746.33,0.00022136,2]
[316010557,1709325069221,-494.02015647,0.00022136,2]
[316010558,1709325069231,-1501.28,0.00022136,2]
[316010559,1709325069241,-822.79,0.00022136,2]
[316010560,1709325069252,-2615.6,0.00022136,2]
[316010561,1709325069263,-500.0,0.00022136,2]
[316010562,1709325069273,-909.65,0.00022136,2]
[316010563,1709325069283,-500.0,0.00022136,2]
[316010564,1709325069294,-500.0,0.00022136,2]
[316010565,1709325069304,-1731.17,0.00022136,2]
[316010566,1709325069315,-500.0,0.00022136,2]
[316010567,1709325069325,-1095.16,0.00022136,2]
[316010568,1709325069335,-3436.44,0.00022136,2]
[316010569,1709325069345,-796.3,0.00022136,2]
[316010570,1709325069355,-500.0,0.00022136,2]
[316010571,1709325069365,-500.0,0.00022136,2]
[316010572,1709325069376,-605.08,0.00022136,2]
[316010573,1709325069386,-1719.11,0.00022136,2]
[316010574,1709325069395,-695.81,0.00022136,2]
[316010575,1709325069405,-1649.56,0.00022136,2]
[316010576,1709325069415,-500.0,0.00022136,2]
[316010577,1709325069425,-695.1,0.00022136,2]
[316010578,1709325069436,-1849.33,0.00022136,2]
[316010579,1709325069446,-500.0,0.00022136,2]
[316010580,1709325069455,-566.31757976,0.00022136,2]
[316010581,1709325069465,-151.0,0.00022136,7]
[316010582,1709325069475,-500.0,0.00022136,2]
[316010583,1709325069485,-500.0,0.00022136,2]
[316010584,1709325069496,-596.04,0.00022136,2]
[316010585,1709325069506,-802.09,0.00022136,2]
[316010586,1709325069515,-914.91,0.00022136,2]
[316010587,1709325069525,-1408.66,0.00022136,2]
[316010588,1709325069534,-500.0,0.00022136,2]
[316010589,1709325069544,-1096.97,0.00022136,2]
[316010590,1709325069553,-500.0,0.00022136,2]
[316010591,1709325069563,-3156.86,0.00022136,2]
[316010592,1709325069573,-500.0,0.00022136,2]
[316010593,1709325069583,-2515.07,0.00022136,2]
[316010594,1709325069593,-205.004529,0.00022136,7]
[316010595,1709325069603,-500.0,0.00022136,2]
[316010596,1709325069612,-500.0,0.00022136,2]
[316010597,1709325069622,-500.0,0.00022136,2]
[316010598,1709325069632,-500.0,0.00022136,2]
[316010599,1709325069641,-241.63507369,0.00022136,2]
[316010600,1709325069651,-576.12,0.00022136,2]
[316010601,1709325069660,-205.004529,0.00022136,7]
[316010602,1709325069669,-1405.35,0.00022136,2]
[316010603,1709325069679,-500.0,0.00022136,2]
[316010604,1709325069691,-500.0,0.00022136,2]
[316010605,1709325069700,-571.01,0.00022136,2]
[316010606,1709325069710,-829.65,0.00022136,2]
[316010607,1709325069720,-1280.88,0.00022136,2]
[316010608,1709325069729,-500.0,0.00022136,2]
[316010609,1709325069739,-2102.13,0.00022136,2]
[316010610,1709325069749,-1130.38,0.00022136,2]
[316010611,1709325069758,-500.0,0.00022136,2]
[316010612,1709325069767,-4965.87,0.00022136,2]
[316010613,1709325069777,-9922.92,0.00022136,2]
[316010614,1709325069787,-500.0,0.00022136,2]
[316010615,1709325069797,-520.32,0.00022136,2]
[316010616,1709325069806,-500.0,0.00022136,2]
[316010617,1709325069815,-500.0,0.00022136,2]
[316010618,1709325069824,-798.06,0.00022136,2]
[316010619,1709325069834,-500.0,0.00022136,2]
[316010620,1709325069843,-500.0,0.00022136,2]
[316010621,1709325069852,-730.32,0.00022136,2]
[316010622,1709325069862,-500.0,0.00022136,2]
[316010623,1709325069871,-3463.0,0.00022136,2]
[316010624,1709325069880,-500.0,0.00022136,2]
[316010625,1709325069890,-500.0,0.00022136,2]
[316010626,1709325069899,-1879.42,0.00022136,2]
[316010627,1709325069908,-500.0,0.00022136,2]
[316010628,1709325069918,-928.45,0.00022136,2]
[316010629,1709325069927,-500.0,0.00022136,2]
[316010630,1709325069939,-5669.44,0.00022136,2]
[316010631,1709325069948,-500.0,0.00022136,2]
[316010632,1709325069958,-1230.85,0.00022136,2]
[316010633,1709325069968,-2980.76,0.00022136,2]
[316010634,1709325069978,-500.0,0.00022136,2]
[316010635,1709325069988,-1281.68,0.00022136,2]
[316010636,1709325069999,-500.0,0.00022136,2]
[316010637,1709325070010,-500.0,0.00022136,2]
[316010638,1709325070020,-500.0,0.00022136,2]
[316010639,1709325070029,-791.17,0.00022136,2]
[316010640,1709325070039,-507.4566446,0.00022136,2]
[316010641,1709325070049,-8137.03,0.00022136,2]
[316010642,1709325070058,-5463.14,0.00022136,2]
[316010643,1709325070067,-500.0,0.00022136,2]
[316010644,1709325070079,-726.54,0.00022136,2]
[316010645,1709325070088,-9818.2,0.00022136,2]
[316010646,1709325070098,-500.0,0.00022136,2]
[316010647,1709325070107,-988.29,0.00022136,2]
[316010648,1709325070117,-500.0,0.00022136,2]
[316010649,1709325070126,-500.0,0.00022136,2]
[316010650,1709325070136,-500.0,0.00022136,2]
[316010651,1709325070145,-500.0,0.00022136,2]
[316010652,1709325070155,-983.46,0.00022136,2]
[316010653,1709325070166,-500.0,0.00022136,2]
[316010654,1709325070175,-456.13038943,0.00022136,2]
[316010655,1709325070187,-500.0,0.00022136,2]
[316010656,1709325070196,-2607.72,0.00022136,2]
[316010657,1709325070206,-500.0,0.00022136,2]
[316010658,1709325070215,-12050.28,0.00022136,2]
[316010659,1709325070225,-500.0,0.00022136,2]
[316010660,1709325070234,-1744.39,0.00022136,2]
[316010661,1709325070244,-635.35,0.00022136,2]
[316010662,1709325070253,-7772.36,0.00022136,2]
[316010663,1709325070262,-4384.09,0.00022136,2]
[316010664,1709325070272,-500.0,0.00022136,2]
[316010665,1709325070281,-500.0,0.00022136,2]
[316010666,1709325070290,-757.05,0.00022136,2]
[316010667,1709325070300,-842.18,0.00022136,2]
[316010668,1709325070310,-825.49,0.00022136,2]
[316010669,1709325070319,-500.0,0.00022136,2]
[316010670,1709325070330,-500.0,0.00022136,2]
[316010671,1709325070341,-500.0,0.00022136,2]
[316010672,1709325070351,-1346.15,0.00022136,2]
[316010673,1709325070360,-500.0,0.00022136,2]
[316010674,1709325070369,-1430.59,0.00022136,2]
[316010675,1709325070378,-1119.47,0.00022136,2]
[316010676,1709325070387,-300.0,0.00022141,2]
[316010677,1709325070398,-150.0,0.00022147,2]
[316010678,1709325070408,-194.07007002,0.00022149,2]
[316010679,1709325070417,-59522.81971788,0.0002215,2]
[316010680,1709325070426,-40100.1479431,0.0002215,2]
[316010681,1709325070437,-14791.0309881,0.0002215,2]
[316010682,1709325070447,-151.0,0.0002215,2]
[316010683,1709325070456,-8741.66326606,0.0002215,2]
[316010684,1709325070466,-150.0,0.00022151,2]
[316010685,1709325070475,-205.904433,0.00022156,7]
[316010686,1709325070484,-150.0,0.00022159,2]
[316010687,1709325070493,-4360.05709236,0.00022159,2]
[316010688,1709325070503,-150.0,0.00022163,2]
[316010689,1709325070512,-150.0,0.00022183,2]
[316010690,1709325070522,-150.0,0.00022184,2]
[316010691,1709325070533,-150.0,0.00022184,2]
[316010692,1709325070543,-150.0,0.00022185,2]
[316010693,1709325070552,-150.0,0.00022186,2]
[316010694,1709325070562,-150.0,0.00022186,2]
[316010695,1709325070571,-150.0,0.00022186,2]
[316010696,1709325070581,-200000.0,0.00022188,2]
[316010697,1709325070590,-150.0,0.00022188,2]
[316010698,1709325070600,-151.0,0.00022188,7]
[316010699,1709325070609,-203.072524,0.00022188,7]
[316010700,1709325070618,-205.004529,0.00022188,7]
[316010701,1709325070628,-205.004529,0.00022188,7]
[316010702,1709325070638,-150.0,0.00022191,2]
[316010703,1709325070647,-150.0,0.00022193,2]
[316010704,1709325070657,-150.0,0.00022193,2]
[316010705,1709325070667,-150.0,0.00022197,2]
[316010706,1709325070676,-150.0,0.00022202,2]
[316010707,1709325070687,-150.0,0.00022202,2]
[316010708,1709325070697,-150.0,0.00022205,2]
[316010709,1709325070706,-150.0,0.00022208,2]
[316010710,1709325070715,-150.0,0.00022209,2]
[316010711,1709325070724,-150.0,0.00022216,2]
[316010712,1709325070733,-150.0,0.00022218,2]
[316010713,1709325070742,-199.05,0.00022221,2]
[316010714,1709325070751,-4360.05709236,0.00022221,2]
[316010715,1709325070761,-150.0,0.00022235,2]
[316010716,1709325070770,-5550.4569951,0.0002224,2]
[316010717,1709325070780,-982.3206787,0.0002224,2]
[316010718,1709325070791,-4990.18398372,0.00022245,2]
[316010719,1709325070800,-204.73380643,0.00022245,2]
[316010720,1709325070809,-1466.17350424,0.00022246,2]
[316010721,1709325070819,-5000.0,0.00022246,2]
[316010722,1709325070828,-163.58898799,0.00022246,7]
[316010723,1709325070837,-200.0,0.00022246,2]
[316010724,1709325070847,-500.0,0.00022246,2]
[316010725,1709325070858,-500.0,0.00022246,2]
[316010726,1709325070868,-500.0,0.00022246,2]
[316010727,1709325070878,-500.0,0.00022246,2]
[316010728,1709325070887,-500.0,0.00022246,2]
[316010729,1709325070896,-500.0,0.00022246,2]
[316010730,1709325070905,-500.0,0.00022246,2]
[316010731,1709325070914,-500.0,0.00022246,2]
[316010732,1709325070923,-500.0,0.00022246,2]
[316010733,1709325070933,-500.0,0.00022246,2]
[316010734,1709325070944,-500.0,0.00022246,2]
[316010735,1709325070953,-500.0,0.00022246,2]
[316010736,1709325070963,-500.0,0.00022246,2]
[316010737,1709325070972,-500.0,0.00022246,2]
[316010738,1709325070982,-500.0,0.00022246,2]
[316010739,1709325070996,-500.0,0.00022246,2]
[316010740,1709325071133,-500.0,0.00022246,2]
[316010741,1709325071144,-500.0,0.00022246,2]
[316010742,1709325071153,-500.0,0.00022246,2]
[316010743,1709325071164,-500.0,0.00022246,2]
[316010744,1709325071173,-579.47,0.00022246,2]
[316010745,1709325071183,-507.68350611,0.00022246,2]
[316010746,1709325071195,-500.0,0.00022246,2]
[316010747,1709325071204,-500.0,0.00022246,2]
[316010748,1709325071214,-500.0,0.00022246,2]
[316010749,1709325071224,-500.0,0.00022246,2]
[316010750,1709325071233,-500.0,0.00022246,2]
[316010751,1709325071243,-500.0,0.00022246,2]
[316010752,1709325071253,-352.69457703,0.00022246,2]
[316010753,1709325071262,-500.0,0.00022246,2]
[316010754,1709325071272,-540.79208554,0.00022246,2]
[316010755,1709325071283,-500.0,0.00022246,2]
[316010756,1709325071292,-500.0,0.00022246,2]
[316010757,1709325071302,-500.0,0.00022246,2]
[316010758,1709325071311,-500.0,0.00022246,2]
[316010759,1709325071321,-500.0,0.00022246,2]
[316010760,1709325071330,-500.0,0.00022246,2]
[316010761,1709325071339,-500.0,0.00022246,2]
[316010762,1709325071348,-500.0,0.00022246,2]
[316010763,1709325071358,-367.18306928,0.00022246,2]
[316010764,1709325071367,-307.76,0.00022246,2]
[316010765,1709325071376,-500.0,0.00022246,2]
[316010766,1709325071385,-472.67374031,0.00022246,2]
[316010767,1709325071395,-500.0,0.00022246,2]
[316010768,1709325071404,-500.0,0.00022246,2]
[316010769,1709325071413,-500.0,0.00022246,2]
[316010770,1709325071422,-500.0,0.00022246,2]
[316010771,1709325071432,-500.0,0.00022246,2]
[316010772,1709325071443,-500.0,0.00022246,2]
[316010773,1709325071453,-500.0,0.00022246,2]
[316010774,1709325071462,-330.96226977,0.00022246,2]
[316010775,1709325071472,-500.0,0.00022246,2]
[316010776,1709325071481,-500.0,0.00022246,2]
[316010777,1709325071491,-500.0,0.00022246,2]
[316010778,1709325071502,-500.0,0.00022246,2]
[316010779,1709325071511,-500.0,0.00022246,2]
[316010780,1709325071521,-500.0,0.00022246,2]
[316010781,1709325071530,-500.0,0.00022246,2]
[316010782,1709325071539,-500.0,0.00022246,2]
[316010783,1709325071549,-574.89915414,0.00022246,2]
[316010784,1709325071558,-500.0,0.00022246,2]
[316010785,1709325071567,-500.0,0.00022246,2]
[316010786,1709325071577,-500.0,0.00022246,2]
[316010787,1709325071587,-500.0,0.00022246,2]
[316010788,1709325071596,-500.0,0.00022246,2]
[316010789,1709325071606,-500.0,0.00022246,2]
[316010790,1709325071615,-500.0,0.00022246,2]
[316010791,1709325071625,-500.0,0.00022246,2]
[316010792,1709325071634,-500.0,0.00022246,2]
[316010793,1709325071644,-500.0,0.00022246,2]
[316010794,1709325071653,-500.0,0.00022246,2]
[316010795,1709325071662,-500.0,0.00022246,2]
[316010796,1709325071671,-500.0,0.00022246,2]
[316010797,1709325071680,-500.0,0.00022246,2]
[316010798,1709325071690,-500.0,0.00022246,2]
[316010799,1709325071700,-500.0,0.00022246,2]
[316010800,1709325071710,-500.0,0.00022246,2]
[316010801,1709325071719,-500.0,0.00022246,2]
[316010802,1709325071730,-500.0,0.00022246,2]
[316010803,1709325071739,-1158.81,0.00022246,2]
[316010804,1709325071749,-500.0,0.00022246,2]
[316010805,1709325071759,-500.0,0.00022246,2]
[316010806,1709325071769,-500.0,0.00022246,2]
[316010807,1709325071778,-500.0,0.00022246,2]
[316010808,1709325071787,-500.0,0.00022246,2]
[316010809,1709325071797,-500.0,0.00022246,2]
[316010810,1709325071806,-500.0,0.00022246,2]
[316010811,1709325071815,-500.0,0.00022246,2]
[316010812,1709325071824,-500.0,0.00022246,2]
[316010813,1709325071834,-500.0,0.00022246,2]
[316010814,1709325071843,-510.02,0.00022246,2]
[316010815,1709325071853,-621.03222356,0.00022246,2]
[316010816,1709325071863,-196.83453873,0.00022246,2]
[316010817,1709325071872,-500.0,0.00022246,2]
[316010818,1709325071882,-500.0,0.00022246,2]
[316010819,1709325071892,-500.0,0.00022246,2]
[316010820,1709325071901,-500.0,0.00022246,2]
[316010821,1709325071911,-500.0,0.00022246,2]
[316010822,1709325071921,-186.9285856,0.00022246,2]
[316010823,1709325071930,-500.0,0.00022246,2]
[316010824,1709325071941,-500.0,0.00022246,2]
[316010825,1709325071951,-500.0,0.00022246,2]
[316010826,1709325071959,-500.0,0.00022246,2]
[316010827,1709325071969,-500.0,0.00022246,2]
[316010828,1709325071978,-500.0,0.00022246,2]
[316010829,1709325071990,-500.0,0.00022246,2]
[316010830,1709325072000,-500.0,0.00022246,2]
[316010831,1709325072009,-500.0,0.00022246,2]
[316010832,1709325072018,-500.0,0.00022246,2]
[316010833,1709325072028,-500.0,0.00022246,2]
[316010834,1709325072038,-500.0,0.00022246,2]
[316010835,1709325072047,-249.71,0.00022246,2]
[316010836,1709325072056,-500.0,0.00022246,2]
[316010837,1709325072066,-582.8,0.00022246,2]
[316010838,1709325072076,-500.0,0.00022246,2]
[316010839,1709325072085,-2000.0,0.00022246,2]
[316010840,1709325072094,-1096.14,0.00022246,2]
[316010841,1709325072104,-200.0,0.00022246,2]
[316010842,1709325072113,-500.0,0.00022246,2]
[316010843,1709325072122,-500.0,0.00022246,2]
[316010844,1709325072132,-500.0,0.00022246,2]
[316010845,1709325072141,-500.0,0.00022246,2]
[316010846,1709325072150,-500.0,0.00022246,2]
[316010847,1709325072159,-1058.72,0.00022246,2]
[316010848,1709325072169,-1249.03,0.00022246,2]
[316010849,1709325072178,-500.0,0.00022246,2]
[316010850,1709325072189,-1276.8,0.00022246,2]
[316010851,1709325072198,-184.06610507,0.00022246,2]
[316010852,1709325072208,-500.0,0.00022246,2]
[316010853,1709325072218,-936.62,0.00022246,2]
[316010854,1709325072227,-500.0,0.00022246,2]
[316010855,1709325072237,-611.3,0.00022246,2]
[316010856,1709325072246,-500.0,0.00022246,2]
[316010857,1709325072256,-757.45,0.00022246,2]
[316010858,1709325072265,-500.0,0.00022246,2]
[316010859,1709325072275,-500.0,0.00022246,2]
[316010860,1709325072285,-500.0,0.00022246,2]
[316010861,1709325072294,-1137.5,0.00022246,2]
[316010862,1709325072303,-500.0,0.00022246,2]
[316010863,1709325072313,-1015.22,0.00022246,2]
[316010864,1709325072322,-660.66,0.00022246,2]
[316010865,1709325072331,-1087.44,0.00022246,2]
[316010866,1709325072340,-721.12,0.00022246,2]
[316010867,1709325072349,-500.0,0.00022246,2]
[316010868,1709325072358,-500.0,0.00022246,2]
[316010869,1709325072368,-772.6,0.00022246,2]
[316010870,1709325072377,-681.29,0.00022246,2]
[316010871,1709325072386,-803.95,0.00022246,2]
[316010872,1709325072395,-638.9,0.00022246,2]
[316010873,1709325072405,-500.0,0.00022246,2]
[316010874,1709325072414,-500.0,0.00022246,2]
[316010875,1709325072424,-500.0,0.00022246,2]
[316010876,1709325072434,-500.0,0.00022246,2]
[316010877,1709325072445,-500.0,0.00022246,2]
[316010878,1709325072455,-500.0,0.00022246,2]
[316010879,1709325072464,-500.0,0.00022246,2]
[316010880,1709325072473,-500.0,0.00022246,2]
[316010881,1709325072482,-500.0,0.00022246,2]
[316010882,1709325072492,-805.74,0.00022246,2]
[316010883,1709325072502,-500.0,0.00022246,2]
[316010884,1709325072511,-500.0,0.00022246,2]
[316010885,1709325072520,-511.49460382,0.00022246,2]
[316010886,1709325072529,-762.15,0.00022246,2]
[316010887,1709325072539,-609.16,0.00022246,2]
[316010888,1709325072548,-500.0,0.00022246,2]
[316010889,1709325072557,-500.0,0.00022246,2]
[316010890,1709325072566,-848.53,0.00022246,2]
[316010891,1709325072576,-500.0,0.00022246,2]
[316010892,1709325072585,-500.0,0.00022246,2]
[316010893,1709325072595,-500.0,0.00022246,2]
[316010894,1709325072604,-500.0,0.00022246,2]
[316010895,1709325072613,-500.0,0.00022246,2]
[316010896,1709325072623,-507.2,0.00022246,2]
[316010897,1709325072632,-334.74,0.00022246,2]
[316010898,1709325072642,-1065.74,0.00022246,2]
[316010899,1709325072651,-500.0,0.00022246,2]
[316010900,1709325072661,-1592.13,0.00022246,2]
[316010901,1709325072670,-500.0,0.00022246,2]
[316010902,1709325072679,-500.0,0.00022246,2]
[316010903,1709325072688,-500.0,0.00022246,2]
[316010904,1709325072698,-865.42,0.00022246,2]
[316010905,1709325072707,-500.0,0.00022246,2]
[316010906,1709325072716,-500.0,0.00022246,2]
[316010907,1709325072726,-500.0,0.00022246,2]
[316010908,1709325072735,-500.0,0.00022246,2]
[316010909,1709325072744,-826.68,0.00022246,2]
[316010910,1709325072753,-500.0,0.00022246,2]
[316010911,1709325072762,-500.0,0.00022246,2]
[316010912,1709325072771,-500.0,0.00022246,2]
[316010913,1709325072781,-500.0,0.00022246,2]
[316010914,1709325072790,-500.0,0.00022246,2]
[316010915,1709325072799,-500.0,0.00022246,2]
[316010916,1709325072809,-500.0,0.00022246,2]
[316010917,1709325072818,-553.43,0.00022246,2]
[316010918,1709325072828,-500.0,0.00022246,2]
[316010919,1709325072837,-500.0,0.00022246,2]
[316010920,1709325072847,-1042.29,0.00022246,2]
[316010921,1709325072857,-500.0,0.00022246,2]
[316010922,1709325072867,-500.0,0.00022246,2]
[316010923,1709325072876,-500.0,0.00022246,2]
[316010924,1709325072886,-500.0,0.00022246,2]
[316010925,1709325072896,-500.0,0.00022246,2]
[316010926,1709325072905,-512.5,0.00022246,2]
[316010927,1709325072915,-500.0,0.00022246,2]
[316010928,1709325072924,-500.0,0.00022246,2]
[316010929,1709325072934,-500.0,0.00022246,2]
[316010930,1709325072945,-425.87,0.00022246,2]
[316010931,1709325072954,-500.0,0.00022246,2]
[316010932,1709325072964,-500.0,0.00022246,2]
[316010933,1709325072973,-500.0,0.00022246,2]
[316010934,1709325072983,-500.0,0.00022246,2]
[316010935,1709325073123,-628.18,0.00022246,2]
[316010936,1709325073134,-500.0,0.00022246,2]
[316010937,1709325073144,-500.0,0.00022246,2]
[316010938,1709325073153,-500.0,0.00022246,2]
[316010939,1709325073164,-500.0,0.00022246,2]
[316010940,1709325073174,-500.0,0.00022246,2]
[316010941,1709325073184,-500.0,0.00022246,2]
[316010942,1709325073197,-500.0,0.00022246,2]
[316010943,1709325073206,-500.0,0.00022246,2]
[316010944,1709325073215,-500.0,0.00022246,2]
[316010945,1709325073225,-500.0,0.00022246,2]
[316010946,1709325073235,-500.0,0.00022246,2]
[316010947,1709325073244,-500.0,0.00022246,2]
[316010948,1709325073254,-500.0,0.00022246,2]
[316010949,1709325073264,-500.0,0.00022246,2]
[316010950,1709325073274,-191.0080749,0.00022246,2]
[316010951,1709325073283,-1195.6,0.00022246,2]
[316010952,1709325073293,-500.0,0.00022246,2]
[316010953,1709325073302,-500.0,0.00022246,2]
[316010954,1709325073311,-500.0,0.00022246,2]
[316010955,1709325073321,-500.0,0.00022246,2]
[316010956,1709325073330,-500.0,0.00022246,2]
[316010957,1709325073340,-500.0,0.00022246,2]
[316010958,1709325073349,-500.0,0.00022246,2]
[316010959,1709325073358,-500.0,0.00022246,2]
[316010960,1709325073368,-802.71,0.00022246,2]
[316010961,1709325073378,-500.0,0.00022246,2]
[316010962,1709325073387,-500.0,0.00022246,2]
[316010963,1709325073396,-500.0,0.00022246,2]
[316010964,1709325073406,-500.0,0.00022246,2]
[316010965,1709325073415,-500.0,0.00022246,2]
[316010966,1709325073424,-500.0,0.00022246,2]
[316010967,1709325073434,-500.0,0.00022246,2]
[316010968,1709325073444,-500.0,0.00022246,2]
[316010969,1709325073453,-500.0,0.00022246,2]
[316010970,1709325073464,-512.49,0.00022246,2]
[316010971,1709325073473,-500.0,0.00022246,2]
[316010972,1709325073482,-500.0,0.00022246,2]
[316010973,1709325073492,-554.17,0.00022246,2]
[316010974,1709325073502,-500.0,0.00022246,2]
[316010975,1709325073511,-500.0,0.00022246,2]
[316010976,1709325073520,-500.0,0.00022246,2]
[316010977,1709325073530,-500.0,0.00022246,2]
[316010978,1709325073539,-500.0,0.00022246,2]
[316010979,1709325073548,-500.0,0.00022246,2]
[316010980,1709325073558,-500.0,0.00022246,2]
[316010981,1709325073567,-500.0,0.00022246,2]
[316010982,1709325073577,-500.0,0.00022246,2]
[316010983,1709325073586,-500.0,0.00022246,2]
[316010984,1709325073600,-740.6,0.00022246,2]
[316010985,1709325073609,-500.0,0.00022246,2]
[316010986,1709325073618,-353.5329479,0.00022246,2]
[316010987,1709325073628,-876.19,0.00022246,2]
[316010988,1709325073637,-500.0,0.00022246,2]
[316010989,1709325073647,-676.42,0.00022246,2]
[316010990,1709325073657,-500.0,0.00022246,2]
[316010991,1709325073667,-500.0,0.00022246,2]
[316010992,1709325073677,-500.0,0.00022246,2]
[316010993,1709325073688,-465.3156657,0.00022246,2]
[316010994,1709325073697,-500.0,0.00022246,2]
[316010995,1709325073706,-514.56,0.00022246,2]
[316010996,1709325073715,-769.11,0.00022246,2]
[316010997,1709325073724,-595.86,0.00022246,2]
[316010998,1709325073734,-500.0,0.00022246,2]
[316010999,1709325073743,-500.0,0.00022246,2]
[316011000,1709325073753,-500.0,0.00022246,2]
[316011001,1709325073763,-500.0,0.00022246,2]
[316011002,1709325073772,-500.0,0.00022246,2]
[316011003,1709325073785,-500.0,0.00022246,2]
[316011004,1709325073794,-500.0,0.00022246,2]
[316011005,1709325073804,-515.51,0.00022246,2]
[316011006,1709325073814,-500.0,0.00022246,2]
[316011007,1709325073824,-500.0,0.00022246,2]
[316011008,1709325073833,-500.0,0.00022246,2]
[316011009,1709325073844,-500.0,0.00022246,2]
[316011010,1709325073853,-500.0,0.00022246,2]
[316011011,1709325073863,-500.0,0.00022246,2]
[316011012,1709325073873,-425.01229042,0.00022246,2]
[316011013,1709325073882,-500.0,0.00022246,2]
[316011014,1709325073893,-508.4236203,0.00022246,2]